[Event "*** SCC Grand Prix: Titled Tuesday Blitz"]
[Site "Chess.com"]
[Date "2020.10.06"]
[Round "6"]
[White "Keithonsky"]
[Black "jefferyx"]
[Result "0-1"]
[WhiteElo "2605"]
[BlackElo "2915"]
[TimeControl "180+1"]
[EndTime "11:08:03 PDT"]
[Termination "jefferyx won by resignation"]

1. d4 {[%clk 0:03:00.9]} 1... Nf6 {[%clk 0:02:59.9]} 2. c4 {[%clk 0:03:01.3]}
2... c5 {[%clk 0:03:00.5]} 3. d5 {[%clk 0:03:01.2]} 3... b5 {[%clk 0:03:01.1]}
4. Qc2 {[%clk 0:03:01.4]} 4... g6 {[%clk 0:03:00.8]} 5. e4 {[%clk 0:03:01.7]}
5... d6 {[%clk 0:03:01.1]} 6. Nf3 {[%clk 0:03:02.3]} 6... Bg7 {[%clk 0:03:01.4]}
7. cxb5 {[%clk 0:03:02.8]} 7... O-O {[%clk 0:03:01.7]} 8. Nc3 {[%clk 0:03:03.2]}
8... a6 {[%clk 0:03:02.4]} 9. a4 {[%clk 0:03:03.7]} 9... axb5 {[%clk 0:03:02.5]}
10. Bxb5 {[%clk 0:03:04.6]} 10... Na6 {[%clk 0:03:02.2]} 11. O-O {[%clk
0:03:04.6]} 11... Nb4 {[%clk 0:03:01.3]} 12. Qe2 {[%clk 0:03:04.6]} 12... Bg4
{[%clk 0:03:01.1]} 13. Be3 {[%clk 0:02:57.7]} 13... Nd7 {[%clk 0:03:00.8]} 14.
h3 {[%clk 0:02:56.7]} 14... Bxf3 {[%clk 0:03:00.9]} 15. Qxf3 {[%clk 0:02:57.6]}
15... Nc2 {[%clk 0:03:01.6]} 16. Qe2 {[%clk 0:02:57.8]} 16... Nxa1 {[%clk
0:03:01.4]} 17. Rxa1 {[%clk 0:02:58.7]} 17... Nb8 {[%clk 0:02:34.4]} 18. Rd1
{[%clk 0:02:53.4]} 18... Qa5 {[%clk 0:02:33.7]} 19. Bd2 {[%clk 0:02:51.2]} 19...
Qb4 {[%clk 0:02:33]} 20. Be1 {[%clk 0:02:48.7]} 20... Rc8 {[%clk 0:02:29.1]} 21.
Kh1 {[%clk 0:02:47]} 21... c4 {[%clk 0:02:27.5]} 22. f4 {[%clk 0:02:45.8]} 22...
Qc5 {[%clk 0:02:23.8]} 23. e5 {[%clk 0:02:44.9]} 23... dxe5 {[%clk 0:02:24.7]}
24. Ne4 {[%clk 0:02:44.2]} 24... Qc7 {[%clk 0:02:23.8]} 25. f5 {[%clk
0:02:36.5]} 25... Na6 {[%clk 0:01:48.7]} 26. f6 {[%clk 0:02:34.5]} 26... exf6
{[%clk 0:01:47]} 27. d6 {[%clk 0:02:34.7]} 27... Qd8 {[%clk 0:01:47.4]} 28. d7
{[%clk 0:02:31.7]} 28... Rcb8 {[%clk 0:01:46.8]} 29. Qxc4 {[%clk 0:02:28.9]}
29... Nc7 {[%clk 0:01:44.7]} 30. Nd6 {[%clk 0:02:27.7]} 30... Ne6 {[%clk
0:01:39.2]} 31. Bb4 {[%clk 0:02:12.9]} 31... Bf8 {[%clk 0:01:33.6]} 32. Ne4
{[%clk 0:02:07.3]} 32... Bxb4 {[%clk 0:01:22.8]} 33. Qxb4 {[%clk 0:02:08.2]}
33... Nd4 {[%clk 0:01:23.2]} 34. Rxd4 {[%clk 0:02:06.9]} 34... exd4 {[%clk
0:01:24.1]} 35. Qxd4 {[%clk 0:02:07.6]} 35... Rb6 {[%clk 0:01:22.6]} 36. g4
{[%clk 0:01:58.8]} 36... Rab8 {[%clk 0:01:13.2]} 37. h4 {[%clk 0:01:51.2]} 37...
h6 {[%clk 0:01:08.3]} 38. Kg2 {[%clk 0:01:50.1]} 38... Qe7 {[%clk 0:01:03.4]}
39. h5 {[%clk 0:01:46.9]} 39... Kg7 {[%clk 0:01:01.2]} 40. hxg6 {[%clk
0:01:44.3]} 40... fxg6 {[%clk 0:01:02.1]} 41. b4 {[%clk 0:01:42]} 41... Re6
{[%clk 0:01:00.9]} 42. Nc5 {[%clk 0:01:36.2]} 42... Rd6 {[%clk 0:01:00.8]} 43.
Qf4 {[%clk 0:01:28.3]} 43... Rbb6 {[%clk 0:00:53.7]} 44. Ne4 {[%clk 0:01:26.7]}
44... Rd4 {[%clk 0:00:48.6]} 45. Kf3 {[%clk 0:01:18.8]} 45... Rxb5 {[%clk
0:00:43.4]} 46. axb5 {[%clk 0:01:17.4]} 46... Rd3+ {[%clk 0:00:42.1]} 47. Kg2
{[%clk 0:01:15.2]} 47... Rxd7 {[%clk 0:00:43]} 48. b6 {[%clk 0:01:14.3]} 48...
Rd4 {[%clk 0:00:36.6]} 49. b7 {[%clk 0:00:54.5]} 49... Rxb4 {[%clk 0:00:31.4]}
50. b8=Q {[%clk 0:00:54.6]} 50... Rxb8 {[%clk 0:00:32.3]} 51. Qxb8 {[%clk
0:00:55.3]} 51... Qxe4+ {[%clk 0:00:32.9]} 52. Kg3 {[%clk 0:00:56.1]} 52... Qe5+
{[%clk 0:00:32.9]} 53. Qxe5 {[%clk 0:00:55.3]} 53... fxe5 {[%clk 0:00:33.8]} 54.
g5 {[%clk 0:00:52.8]} 54... h5 {[%clk 0:00:32.4]} 55. Kf3 {[%clk 0:00:51.3]}
55... Kf7 {[%clk 0:00:33.3]} 56. Ke3 {[%clk 0:00:51.9]} 56... Ke6 {[%clk
0:00:33.1]} 57. Ke4 {[%clk 0:00:52.2]} 57... h4 {[%clk 0:00:33.8]} 58. Kf3
{[%clk 0:00:52.6]} 58... Kf5 {[%clk 0:00:34.7]} 0-1

[Event "*** SCC Grand Prix: Titled Tuesday Blitz"]
[Site "Chess.com"]
[Date "2020.10.06"]
[Round "6"]
[White "KyrgyzFighter"]
[Black "MVM2008"]
[Result "0-1"]
[WhiteElo "2381"]
[BlackElo "2233"]
[TimeControl "180+1"]
[EndTime "11:08:05 PDT"]
[Termination "MVM2008 won by checkmate"]

1. c4 {[%clk 0:03:00.9]} 1... d6 {[%clk 0:02:56.9]} 2. Nc3 {[%clk 0:03:00.4]}
2... e5 {[%clk 0:02:55.6]} 3. g3 {[%clk 0:02:59.7]} 3... g6 {[%clk 0:02:54.4]}
4. Bg2 {[%clk 0:02:59.9]} 4... Bg7 {[%clk 0:02:54.8]} 5. e3 {[%clk 0:03:00.6]}
5... Ne7 {[%clk 0:02:51.2]} 6. Nge2 {[%clk 0:03:01]} 6... O-O {[%clk 0:02:50.9]}
7. O-O {[%clk 0:02:59.3]} 7... Be6 {[%clk 0:02:44.9]} 8. Bxb7 {[%clk 0:02:53.7]}
8... Nd7 {[%clk 0:02:40.8]} 9. Bxa8 {[%clk 0:02:45]} 9... Qxa8 {[%clk
0:02:41.7]} 10. f3 {[%clk 0:02:28.6]} 10... f5 {[%clk 0:02:29.7]} 11. d4 {[%clk
0:02:25.8]} 11... f4 {[%clk 0:02:27.1]} 12. exf4 {[%clk 0:02:17.5]} 12... Bxc4
{[%clk 0:02:11.3]} 13. dxe5 {[%clk 0:02:14.3]} 13... Nc5 {[%clk 0:02:01.1]} 14.
Be3 {[%clk 0:02:08.1]} 14... Nd3 {[%clk 0:01:57.2]} 15. b3 {[%clk 0:02:07.3]}
15... Ba6 {[%clk 0:01:54.5]} 16. exd6 {[%clk 0:01:53.8]} 16... Nf5 {[%clk
0:01:44.2]} 17. Bf2 {[%clk 0:01:40.2]} 17... Qxf3 {[%clk 0:01:17]} 18. Bxa7
{[%clk 0:01:16.3]} 18... Qg4 {[%clk 0:01:06.9]} 19. dxc7 {[%clk 0:00:56.5]}
19... Qh3 {[%clk 0:00:48.3]} 20. Ne4 {[%clk 0:00:32.8]} 20... Re8 {[%clk
0:00:15.4]} 21. N2c3 {[%clk 0:00:16.3]} 21... Bxc3 {[%clk 0:00:07.6]} 22. Nxc3
{[%clk 0:00:15.5]} 22... Bb7 {[%clk 0:00:08.3]} 23. Qd2 {[%clk 0:00:10.2]} 23...
Nxg3 {[%clk 0:00:07]} 24. c8=Q {[%clk 0:00:03.4]} 24... Rxc8 {[%clk 0:00:05.1]}
25. f5 {[%clk 0:00:03.5]} 25... Nxf1 {[%clk 0:00:04.5]} 26. Rxf1 {[%clk
0:00:04.4]} 26... Qg4+ {[%clk 0:00:04.9]} 27. Qg2 {[%clk 0:00:02.4]} 27... Qxg2#
{[%clk 0:00:04.3]} 0-1

[Event "*** SCC Grand Prix: Titled Tuesday Blitz"]
[Site "Chess.com"]
[Date "2020.10.06"]
[Round "6"]
[White "aisha_zakirova"]
[Black "northridgehawk"]
[Result "0-1"]
[WhiteElo "2172"]
[BlackElo "2305"]
[TimeControl "180+1"]
[EndTime "11:08:05 PDT"]
[Termination "northridgehawk won by checkmate"]

1. d4 {[%clk 0:03:00.9]} 1... f5 {[%clk 0:02:50.4]} 2. e4 {[%clk 0:02:55.6]}
2... fxe4 {[%clk 0:02:39.8]} 3. Nc3 {[%clk 0:02:45.4]} 3... Nf6 {[%clk
0:02:24.4]} 4. Bg5 {[%clk 0:02:42.3]} 4... c6 {[%clk 0:02:23.3]} 5. Bxf6 {[%clk
0:02:35.5]} 5... exf6 {[%clk 0:02:22.3]} 6. Nxe4 {[%clk 0:02:32]} 6... d5 {[%clk
0:02:22.7]} 7. Nc3 {[%clk 0:02:29.6]} 7... Bd6 {[%clk 0:02:23.2]} 8. Bd3 {[%clk
0:02:17.4]} 8... O-O {[%clk 0:02:15.4]} 9. Nge2 {[%clk 0:02:15.8]} 9... Bg4
{[%clk 0:02:12.5]} 10. O-O {[%clk 0:02:13.4]} 10... Nd7 {[%clk 0:02:09.2]} 11.
Qd2 {[%clk 0:01:59.6]} 11... Qc7 {[%clk 0:01:55.6]} 12. h3 {[%clk 0:01:52.6]}
12... Bh5 {[%clk 0:01:54.9]} 13. f4 {[%clk 0:01:30.7]} 13... Rae8 {[%clk
0:01:50.7]} 14. Ng3 {[%clk 0:01:23.5]} 14... Bf7 {[%clk 0:01:49.2]} 15. Nf5
{[%clk 0:01:11.4]} 15... Bb4 {[%clk 0:01:46.6]} 16. Qf2 {[%clk 0:01:08]} 16...
Bg6 {[%clk 0:01:43.2]} 17. Qg3 {[%clk 0:00:52.3]} 17... Rf7 {[%clk 0:01:28]} 18.
Rae1 {[%clk 0:00:43.9]} 18... Rxe1 {[%clk 0:01:17.2]} 19. Rxe1 {[%clk
0:00:42.6]} 19... Nf8 {[%clk 0:01:14.2]} 20. Qg4 {[%clk 0:00:31.5]} 20... Bxf5
{[%clk 0:01:10.3]} 21. Bxf5 {[%clk 0:00:28.5]} 21... g6 {[%clk 0:01:10.7]} 22.
Be6 {[%clk 0:00:23.1]} 22... Nxe6 {[%clk 0:01:01]} 23. Qxe6 {[%clk 0:00:21.9]}
23... f5 {[%clk 0:01:00.9]} 24. Re5 {[%clk 0:00:17.2]} 24... Bd6 {[%clk
0:00:59.1]} 25. Qe8+ {[%clk 0:00:15.2]} 25... Kg7 {[%clk 0:00:58.1]} 26. Re2
{[%clk 0:00:13.9]} 26... Bxf4 {[%clk 0:00:57.5]} 27. Kf2 {[%clk 0:00:12.9]}
27... Bg3+ {[%clk 0:00:56.8]} 28. Kg1 {[%clk 0:00:12.2]} 28... Bd6 {[%clk
0:00:57.7]} 29. h4 {[%clk 0:00:11.8]} 29... Re7 {[%clk 0:00:57.2]} 30. Rxe7+
{[%clk 0:00:11.1]} 30... Qxe7 {[%clk 0:00:58.1]} 31. Qxe7+ {[%clk 0:00:10.1]}
31... Bxe7 {[%clk 0:00:59]} 32. g3 {[%clk 0:00:10.5]} 32... Bd6 {[%clk
0:00:58.8]} 33. Kg2 {[%clk 0:00:08.8]} 33... Kf6 {[%clk 0:00:59.7]} 34. Ne2
{[%clk 0:00:07]} 34... h6 {[%clk 0:01:00.6]} 35. c3 {[%clk 0:00:06.2]} 35... g5
{[%clk 0:01:00.9]} 36. Nc1 {[%clk 0:00:06.4]} 36... f4 {[%clk 0:01:00.8]} 37.
gxf4 {[%clk 0:00:05]} 37... Bxf4 {[%clk 0:00:59.9]} 38. Nd3 {[%clk 0:00:04.4]}
38... Kf5 {[%clk 0:01:00.1]} 39. h5 {[%clk 0:00:03]} 39... Kg4 {[%clk
0:00:59.2]} 40. Nc5 {[%clk 0:00:02.7]} 40... Kxh5 {[%clk 0:00:57.8]} 41. Nxb7
{[%clk 0:00:02.6]} 41... Kg4 {[%clk 0:00:58.3]} 42. Nd8 {[%clk 0:00:02.1]} 42...
h5 {[%clk 0:00:59.2]} 43. Nxc6 {[%clk 0:00:01.8]} 43... h4 {[%clk 0:01:00.1]}
44. Nxa7 {[%clk 0:00:01.9]} 44... h3+ {[%clk 0:01:01]} 45. Kh1 {[%clk
0:00:02.5]} 45... Kf3 {[%clk 0:01:00.4]} 46. b4 {[%clk 0:00:02.9]} 46... g4
{[%clk 0:01:01.3]} 47. b5 {[%clk 0:00:03.1]} 47... g3 {[%clk 0:01:02.2]} 48. b6
{[%clk 0:00:02.6]} 48... g2+ {[%clk 0:01:03.1]} 49. Kg1 {[%clk 0:00:02.6]} 49...
Kg3 {[%clk 0:01:03]} 50. b7 {[%clk 0:00:02.2]} 50... h2# {[%clk 0:01:03.9]} 0-1

[Event "*** SCC Grand Prix: Titled Tuesday Blitz"]
[Site "Chess.com"]
[Date "2020.10.06"]
[Round "6"]
[White "AliKa2810"]
[Black "denispopov"]
[Result "1-0"]
[WhiteElo "2571"]
[BlackElo "2004"]
[TimeControl "180+1"]
[EndTime "11:08:06 PDT"]
[Termination "AliKa2810 won on time"]

1. d4 {[%clk 0:03:00.9]} 1... Nf6 {[%clk 0:02:53.5]} 2. c4 {[%clk 0:03:00.6]}
2... g6 {[%clk 0:02:31.8]} 3. Nc3 {[%clk 0:03:00.1]} 3... d5 {[%clk 0:02:28.3]}
4. Bg5 {[%clk 0:02:59.8]} 4... Ne4 {[%clk 0:02:24.9]} 5. Bf4 {[%clk 0:03:00]}
5... Nxc3 {[%clk 0:02:19.8]} 6. bxc3 {[%clk 0:03:00.9]} 6... Bg7 {[%clk
0:02:19.6]} 7. e3 {[%clk 0:02:57.1]} 7... O-O {[%clk 0:02:17.2]} 8. Nf3 {[%clk
0:02:56.5]} 8... c5 {[%clk 0:02:15.9]} 9. cxd5 {[%clk 0:02:56.3]} 9... Qxd5
{[%clk 0:02:10.9]} 10. Be2 {[%clk 0:02:56.8]} 10... Nc6 {[%clk 0:02:09.8]} 11.
O-O {[%clk 0:02:54.9]} 11... cxd4 {[%clk 0:02:06.1]} 12. cxd4 {[%clk 0:02:55.8]}
12... Bf5 {[%clk 0:02:00.8]} 13. Qb3 {[%clk 0:02:49.9]} 13... Qxb3 {[%clk
0:01:51.7]} 14. axb3 {[%clk 0:02:50.8]} 14... a6 {[%clk 0:01:30.6]} 15. Rfc1
{[%clk 0:02:48.6]} 15... Rac8 {[%clk 0:01:28.2]} 16. h3 {[%clk 0:02:36.6]} 16...
Nb4 {[%clk 0:01:21.9]} 17. g4 {[%clk 0:02:24.2]} 17... Be6 {[%clk 0:01:15.9]}
18. Bc4 {[%clk 0:02:19.8]} 18... Bxc4 {[%clk 0:01:11.3]} 19. Rxc4 {[%clk
0:02:19.5]} 19... Nd3 {[%clk 0:01:08.5]} 20. Bg3 {[%clk 0:02:12.5]} 20... Rxc4
{[%clk 0:01:05.4]} 21. bxc4 {[%clk 0:02:10.6]} 21... Rc8 {[%clk 0:01:01]} 22.
Rb1 {[%clk 0:02:01.6]} 22... Rxc4 {[%clk 0:00:49.2]} 23. Rxb7 {[%clk 0:02:01.2]}
23... Bf8 {[%clk 0:00:47.2]} 24. Ra7 {[%clk 0:01:38]} 24... Ra4 {[%clk
0:00:44.9]} 25. d5 {[%clk 0:01:25.6]} 25... Ra5 {[%clk 0:00:31.2]} 26. e4 {[%clk
0:01:25.3]} 26... Nc5 {[%clk 0:00:23]} 27. Nd2 {[%clk 0:01:04.3]} 27... Ra2
{[%clk 0:00:21.8]} 28. Bf4 {[%clk 0:00:58.8]} 28... Nd3 {[%clk 0:00:14.7]} 29.
Be3 {[%clk 0:00:57.6]} 29... Ne5 {[%clk 0:00:13.4]} 30. Kg2 {[%clk 0:00:56.8]}
30... a5 {[%clk 0:00:12.1]} 31. Ra8 {[%clk 0:00:43.4]} 31... a4 {[%clk
0:00:11.2]} 32. Bh6 {[%clk 0:00:34.9]} 32... Nd7 {[%clk 0:00:10.8]} 33. e5
{[%clk 0:00:28.8]} 33... Rxd2 {[%clk 0:00:05.7]} 34. e6 {[%clk 0:00:20.3]} 34...
fxe6 {[%clk 0:00:03.6]} 35. dxe6 {[%clk 0:00:20.2]} 35... Rd6 {[%clk 0:00:01.3]}
36. exd7 {[%clk 0:00:20]} 1-0

[Event "*** SCC Grand Prix: Titled Tuesday Blitz"]
[Site "Chess.com"]
[Date "2020.10.06"]
[Round "6"]
[White "PattyCastillo"]
[Black "Manukyan_Artak"]
[Result "0-1"]
[WhiteElo "2003"]
[BlackElo "2303"]
[TimeControl "180+1"]
[EndTime "11:08:09 PDT"]
[Termination "Manukyan_Artak won by resignation"]

1. d4 {[%clk 0:02:57.8]} 1... Nf6 {[%clk 0:02:59.3]} 2. Nf3 {[%clk 0:02:58]}
2... d5 {[%clk 0:02:59]} 3. e3 {[%clk 0:02:58]} 3... Bg4 {[%clk 0:02:58.6]} 4.
Bd3 {[%clk 0:02:58.4]} 4... e6 {[%clk 0:02:58.7]} 5. Nbd2 {[%clk 0:02:58.6]}
5... c5 {[%clk 0:02:58.6]} 6. b3 {[%clk 0:02:58.4]} 6... cxd4 {[%clk 0:02:58]}
7. exd4 {[%clk 0:02:57.7]} 7... Nc6 {[%clk 0:02:58.1]} 8. Bb2 {[%clk 0:02:54.3]}
8... Bd6 {[%clk 0:02:53.2]} 9. O-O {[%clk 0:02:53.3]} 9... Qc7 {[%clk 0:02:51]}
10. a3 {[%clk 0:02:52.9]} 10... Bxh2+ {[%clk 0:02:49.7]} 11. Kh1 {[%clk
0:02:51.5]} 11... Bf4 {[%clk 0:02:47.8]} 12. Qe1 {[%clk 0:02:49.4]} 12... O-O
{[%clk 0:02:43.2]} 13. c4 {[%clk 0:02:44.2]} 13... Rad8 {[%clk 0:02:37.2]} 14.
c5 {[%clk 0:02:43.7]} 14... Rfe8 {[%clk 0:02:34.1]} 15. g3 {[%clk 0:02:43.4]}
15... Bxd2 {[%clk 0:02:18.5]} 16. Nxd2 {[%clk 0:02:41]} 16... e5 {[%clk
0:02:18.5]} 17. dxe5 {[%clk 0:02:38.6]} 17... Nd7 {[%clk 0:02:18.4]} 18. f4
{[%clk 0:02:30.6]} 18... Nxc5 {[%clk 0:02:18.3]} 19. Be2 {[%clk 0:02:19.5]}
19... Bxe2 {[%clk 0:02:13.4]} 20. Qxe2 {[%clk 0:02:20.4]} 20... f6 {[%clk
0:02:08.1]} 21. Qb5 {[%clk 0:02:12.5]} 21... Qb6 {[%clk 0:01:56.5]} 22. Qxb6
{[%clk 0:02:07.9]} 22... axb6 {[%clk 0:01:57.4]} 23. exf6 {[%clk 0:02:06.9]}
23... Nd3 {[%clk 0:01:49.6]} 24. Bc3 {[%clk 0:01:48.5]} 24... d4 {[%clk
0:01:45.9]} 25. Bb4 {[%clk 0:01:48.8]} 25... Ncxb4 {[%clk 0:01:41]} 26. axb4
{[%clk 0:01:49.7]} 26... gxf6 {[%clk 0:01:41]} 27. Ra7 {[%clk 0:01:40.6]} 27...
Re2 {[%clk 0:01:26.9]} 28. Nf3 {[%clk 0:01:36.1]} 28... Nf2+ {[%clk 0:01:24.6]}
29. Kg1 {[%clk 0:01:32.3]} 29... Nh3+ {[%clk 0:01:20.8]} 30. Kh1 {[%clk
0:01:31]} 30... d3 {[%clk 0:01:20.1]} 31. Raa1 {[%clk 0:00:40.8]} 31... d2
{[%clk 0:01:14.5]} 32. b5 {[%clk 0:00:36]} 32... Nf2+ {[%clk 0:01:07.4]} 33. Kg1
{[%clk 0:00:35.8]} 33... d1=Q {[%clk 0:01:06.4]} 34. Raxd1 {[%clk 0:00:30.2]}
34... Rxd1 {[%clk 0:01:07.3]} 35. Rxd1 {[%clk 0:00:16.5]} 35... Nxd1 {[%clk
0:01:08.2]} 36. Nd4 {[%clk 0:00:15.4]} 36... Rd2 {[%clk 0:00:59]} 37. Nf5 {[%clk
0:00:13]} 37... Kf7 {[%clk 0:00:56.8]} 38. Kf1 {[%clk 0:00:12.6]} 38... Rd5
{[%clk 0:00:50.6]} 39. Nh6+ {[%clk 0:00:11.4]} 39... Kg6 {[%clk 0:00:49.9]} 40.
Ng4 {[%clk 0:00:11.6]} 40... Rxb5 {[%clk 0:00:47.3]} 41. Ke2 {[%clk 0:00:11.7]}
41... Nc3+ {[%clk 0:00:45.8]} 42. Kd3 {[%clk 0:00:12.2]} 42... Na2 {[%clk
0:00:43.3]} 43. Kc2 {[%clk 0:00:10.8]} 43... Rc5+ {[%clk 0:00:42.9]} 44. Kb2
{[%clk 0:00:11.2]} 44... Nb4 {[%clk 0:00:42.5]} 45. Ka3 {[%clk 0:00:10.5]} 45...
Nd3 {[%clk 0:00:41.5]} 46. b4 {[%clk 0:00:07.7]} 46... Rc3+ {[%clk 0:00:40.8]}
47. Ka2 {[%clk 0:00:08.4]} 47... Nxb4+ {[%clk 0:00:40.3]} 48. Kb2 {[%clk
0:00:09.1]} 48... Rxg3 {[%clk 0:00:40.6]} 0-1

[Event "*** SCC Grand Prix: Titled Tuesday Blitz"]
[Site "Chess.com"]
[Date "2020.10.06"]
[Round "6"]
[White "TheMagnet"]
[Black "topotun"]
[Result "0-1"]
[WhiteElo "2584"]
[BlackElo "2750"]
[TimeControl "180+1"]
[EndTime "11:08:12 PDT"]
[Termination "topotun won on time"]

1. d4 {[%clk 0:02:59.9]} 1... Nf6 {[%clk 0:03:00]} 2. c4 {[%clk 0:03:00.2]} 2...
c5 {[%clk 0:02:56.8]} 3. d5 {[%clk 0:03:00.2]} 3... e6 {[%clk 0:02:57.1]} 4. Nc3
{[%clk 0:03:00.3]} 4... exd5 {[%clk 0:02:57.7]} 5. cxd5 {[%clk 0:03:01.2]} 5...
d6 {[%clk 0:02:58.5]} 6. e4 {[%clk 0:03:01.9]} 6... g6 {[%clk 0:02:58.9]} 7. f4
{[%clk 0:03:02.6]} 7... Bg7 {[%clk 0:02:57.5]} 8. Nf3 {[%clk 0:03:03.2]} 8...
O-O {[%clk 0:02:56.2]} 9. Be2 {[%clk 0:03:03.7]} 9... b5 {[%clk 0:02:55.1]} 10.
e5 {[%clk 0:03:03.3]} 10... Nfd7 {[%clk 0:02:23.7]} 11. e6 {[%clk 0:02:41.4]}
11... fxe6 {[%clk 0:02:23.5]} 12. dxe6 {[%clk 0:02:42]} 12... Nb6 {[%clk
0:02:23.5]} 13. Bxb5 {[%clk 0:02:28.3]} 13... Bxe6 {[%clk 0:02:14.4]} 14. O-O
{[%clk 0:02:22.2]} 14... Kh8 {[%clk 0:02:12]} 15. Ng5 {[%clk 0:02:14.7]} 15...
Bg8 {[%clk 0:02:11.8]} 16. Qf3 {[%clk 0:02:09.8]} 16... d5 {[%clk 0:01:55.3]}
17. Bd3 {[%clk 0:01:59.9]} 17... c4 {[%clk 0:01:44]} 18. Bc2 {[%clk 0:01:45.9]}
18... Nc6 {[%clk 0:01:35.9]} 19. Be3 {[%clk 0:01:33.4]} 19... Nb4 {[%clk
0:01:23.7]} 20. Bxg6 {[%clk 0:01:26]} 20... Qxg5 {[%clk 0:01:22.8]} 21. fxg5
{[%clk 0:01:16.5]} 21... Rxf3 {[%clk 0:01:23]} 22. Rxf3 {[%clk 0:01:11.4]} 22...
hxg6 {[%clk 0:01:13.7]} 23. Rh3+ {[%clk 0:01:07.5]} 23... Bh7 {[%clk 0:01:13.9]}
24. Rd1 {[%clk 0:01:00.7]} 24... Rd8 {[%clk 0:01:05.1]} 25. Ne4 {[%clk
0:00:40.1]} 25... Nd7 {[%clk 0:00:43.4]} 26. Bxa7 {[%clk 0:00:27.1]} 26... Nd3
{[%clk 0:00:35.2]} 27. Nd6 {[%clk 0:00:19.1]} 27... Kg8 {[%clk 0:00:34]} 28. b3
{[%clk 0:00:17.3]} 28... N7e5 {[%clk 0:00:24.4]} 29. Nb5 {[%clk 0:00:15.9]}
29... Rd7 {[%clk 0:00:17.7]} 30. Bd4 {[%clk 0:00:14.7]} 30... Ng4 {[%clk
0:00:12.6]} 31. Bxg7 {[%clk 0:00:12]} 31... Kxg7 {[%clk 0:00:13.5]} 32. bxc4
{[%clk 0:00:09]} 32... dxc4 {[%clk 0:00:14.4]} 33. Na3 {[%clk 0:00:09.2]} 33...
Bg8 {[%clk 0:00:13.8]} 34. Rh4 {[%clk 0:00:06.4]} 34... Nge5 {[%clk 0:00:12.5]}
35. Re4 {[%clk 0:00:03.7]} 35... Ra7 {[%clk 0:00:12]} 0-1

[Event "*** SCC Grand Prix: Titled Tuesday Blitz"]
[Site "Chess.com"]
[Date "2020.10.06"]
[Round "6"]
[White "ZverevLev"]
[Black "ErikRonka"]
[Result "1-0"]
[WhiteElo "2345"]
[BlackElo "2437"]
[TimeControl "180+1"]
[EndTime "11:08:12 PDT"]
[Termination "ZverevLev won by resignation"]

1. e4 {[%clk 0:03:00.9]} 1... c5 {[%clk 0:02:53.9]} 2. Nf3 {[%clk 0:03:00.5]}
2... d6 {[%clk 0:02:53.3]} 3. d4 {[%clk 0:02:59.9]} 3... cxd4 {[%clk 0:02:52.9]}
4. Nxd4 {[%clk 0:03:00.8]} 4... Nf6 {[%clk 0:02:53.5]} 5. Nc3 {[%clk 0:03:00.1]}
5... a6 {[%clk 0:02:51.8]} 6. Bg5 {[%clk 0:02:59.9]} 6... h5 {[%clk 0:02:51.5]}
7. f4 {[%clk 0:02:53.3]} 7... Qb6 {[%clk 0:02:47.8]} 8. Qd2 {[%clk 0:02:48.3]}
8... Nc6 {[%clk 0:02:46.8]} 9. Nxc6 {[%clk 0:02:45.4]} 9... bxc6 {[%clk
0:02:30.5]} 10. O-O-O {[%clk 0:02:43.5]} 10... Ng4 {[%clk 0:02:27.4]} 11. Bh4
{[%clk 0:01:57.1]} 11... Qe3 {[%clk 0:02:26.2]} 12. Bc4 {[%clk 0:01:50.6]} 12...
Qxd2+ {[%clk 0:02:25.4]} 13. Rxd2 {[%clk 0:01:51.5]} 13... e6 {[%clk 0:02:03.8]}
14. Bb3 {[%clk 0:01:49]} 14... Be7 {[%clk 0:01:40.1]} 15. Bxe7 {[%clk 0:01:47]}
15... Kxe7 {[%clk 0:01:41]} 16. h3 {[%clk 0:01:46.4]} 16... Nh6 {[%clk
0:01:37.1]} 17. Rhd1 {[%clk 0:01:44.5]} 17... d5 {[%clk 0:01:27.4]} 18. exd5
{[%clk 0:01:40.7]} 18... cxd5 {[%clk 0:01:26.6]} 19. Re1 {[%clk 0:01:37.8]}
19... Kf6 {[%clk 0:01:22.9]} 20. Ne2 {[%clk 0:01:02.9]} 20... Nf5 {[%clk
0:01:10.9]} 21. g4 {[%clk 0:01:01.3]} 21... hxg4 {[%clk 0:01:11.8]} 22. hxg4
{[%clk 0:01:02.1]} 22... Nd6 {[%clk 0:01:12.3]} 23. Nc3 {[%clk 0:00:53.7]} 23...
Rh4 {[%clk 0:01:05.8]} 24. Bxd5 {[%clk 0:00:50.6]} 24... exd5 {[%clk 0:00:43.7]}
25. Nxd5+ {[%clk 0:00:51.5]} 25... Kg6 {[%clk 0:00:42.8]} 26. Nb6 {[%clk
0:00:40.3]} 26... Nc4 {[%clk 0:00:20.1]} 27. Nxc4 {[%clk 0:00:37.6]} 27... Bxg4
{[%clk 0:00:19.4]} 28. Ne5+ {[%clk 0:00:36.5]} 28... Kf5 {[%clk 0:00:19.2]} 29.
Nxf7 {[%clk 0:00:33.7]} 29... Kxf4 {[%clk 0:00:17.3]} 30. Rd4+ {[%clk
0:00:32.7]} 30... Kf5 {[%clk 0:00:12.5]} 31. Nd6+ {[%clk 0:00:32.3]} 31... Kg5
{[%clk 0:00:11.8]} 32. Rg1 {[%clk 0:00:31.9]} 32... Rf8 {[%clk 0:00:10.5]} 33.
Ne4+ {[%clk 0:00:31.4]} 33... Kh5 {[%clk 0:00:09.6]} 34. Rd5+ {[%clk 0:00:30.4]}
34... Rf5 {[%clk 0:00:09]} 35. Ng3+ {[%clk 0:00:27.3]} 35... Kg5 {[%clk
0:00:03.4]} 36. Nxf5 {[%clk 0:00:25.1]} 36... Kf4 {[%clk 0:00:02]} 37. Nxh4
{[%clk 0:00:24.5]} 37... Bf3 {[%clk 0:00:01.3]} 1-0